Cogmind - Beta 14 @@@ ROGUE MODE // 2024.12.14 @ 18:07:09 Player: GreenBlaze Result: Destroyed by Y-45 Defender with Beam Rifle Performance ------------- Evolutions (1) 500 Regions Visited (2) 400 Robots Destroyed (10) 50 Value Destroyed (144) 144 Prototype IDs (0) 0 Alien Tech Used (0) 0 Bonus (0) 0 TOTAL SCORE: 1094 Bonus ------- None Cogmind --------- Core Integrity 0/400 Matter 261/300 Energy 100/100 System Corruption 0% Temperature Cool (9) Movement Core (700) Ox13 Location -9/Materials Parts ------- > --- POWER (1) -------- (None) > --- PROPULSION (3) --- (None) > --- UTILITY (3) ------ High-capacity Storage Unit > --- WEAPON (2) ------- (None) > --- INVENTORY (20) --- Light Ion Engine Hardened Light Armor Plating Hardened Light Armor Plating Plasma Cutter Peak State ------------ > --- POWER ------------ Ion Engine > --- PROPULSION ------- Light Treads Light Treads Light Treads > --- UTILITY ---------- High-capacity Storage Unit Hardened Light Armor Plating Hardened Light Armor Plating > --- WEAPON ----------- Plasma Cutter Plasma Cutter > --- INVENTORY -------- Light Ion Engine Light Treads Hardened Light Armor Plating Hardened Light Armor Plating Plasma Cutter Plasma Cutter [Rating: 14] Favorites ----------- Power Ion Engine Engine Ion Engine Propulsion Light Treads Treads Light Treads Utility High-capacity Storage Unit Device Heat Sink Storage High-capacity Storage Unit Processor Signal Interpreter Protection Hardened Light Armor Plating Weapon Light Cannon Ballistic Cannon Light Cannon Special Weapon Plasma Cutter Build | -11 -10 -9 ------- Run | Yrd Mat Mat Slots Evolved 2 | . . 2 Power . | . . . Propulsion 1 | . . 1 Utility 1 | . . 1 Weapon . | . . . Parts Attached 19 | 4 9 6 Power 1 | 1 . . Engine 1 | 1 . . Core . | . . . Reactor . | . . . Propulsion 5 | 2 . 3 Treads 5 | 2 . 3 Leg . | . . . Wheel . | . . . Hover . | . . . Flight . | . . . Utility 8 | 1 6 1 Device 1 | . 1 . Storage 3 | 1 2 . Processor 1 | . 1 . Hackware . | . . . Protection 3 | . 2 1 Artifact . | . . . Weapon 5 | . 3 2 Energy Gun . | . . . Energy Cannon . | . . . Ballistic Gun . | . . . Ballistic Cannon 1 | . 1 . Launcher . | . . . Special Weapon 4 | . 2 2 Impact Weapon . | . . . Slashing Weapon . | . . . Piercing Weapon . | . . . Special Melee Weapon . | . . . Unidentified Prototypes . | . . . Parts Lost 9 | . . 9 Power . | . . . Propulsion 4 | . . 4 Utility 2 | . . 2 Weapon 3 | . . 3 Highest Loss Streak 9 | . . 9 To Critical Strikes 1 | . . 1 Average Slot Usage (%) 81 | . 84 63 Engine 12 | . 14 2 Treads 27 | . 28 26 Device 9 | . 11 . Storage 12 | . 13 11 Protection 4 | . 3 13 Ballistic Cannon 7 | . 8 . Special Weapon 5 | . 4 10 Peak Build Rating 14 | 4 11 14 Average Rating 6 | 3 6 8 On Entrance 5 | . 4 11 Naked Turns . | . . . Heaviest Build 57 | 10 52 57 Greatest Support 60 | 40 40 60 Greatest Overweight (x) 1 | . 1 1 Average Overweight (x) . | . . . Largest Inventory Capacity 20 | 8 20 20 Average Capacity 17 | 6 17 20 Most Carried 8 | 2 8 7 Average Carried 4 | . 4 5 Final Capacity 20 | 8 20 20 Final Carried 8 | 1 8 4 Class Distribution -------------------- 100% | Mutant Dominant Class ---------------- Mutant | -10/Materials Mutant | -9/Materials Resources | -11 -10 -9 ----------- Run | Yrd Mat Mat Matter Collected 232 | 205 18 9 Remotely . | . . . Salvage Created 86 | 47 15 24 Parts 6 | . 1 5 Haulers Intercepted . | . . . Recyclers Shooed . | . . . Parts Field Recycled . | . . . Retrieved Matter . | . . . Parts Self-Destructed . | . . . Prevented . | . . . Kills | -11 -10 -9 ------- Run | Yrd Mat Mat Combat Hostiles Destroyed 6 | . 2 4 Melee 2 | . . 2 Cannons 2 | . . 2 AOE 1 | . 1 . Classes Destroyed 5 | 1 3 1 Worker 1 | . 1 . Recycler 1 | 1 . . Watcher 2 | . 2 . Swarmer 5 | . 2 3 Sentry 1 | . . 1 Best Kill Streak 3 | 1 2 3 Combat Bots Only 3 | . 2 3 Max Kills in Single Turn 1 | 1 1 1 Gunslinging . | . . . Exploded 1 | . 1 . Melee 1 | . . 1 Uniques/NPCs Destroyed . | . . . Combat | -11 -10 -9 -------- Run | Yrd Mat Mat Hostile Shots Fired 193 | . 31 162 Missed 49 | . 5 44 Damage Taken 1775 | . 300 1475 Core 471 | . 67 404 Absorbed by Shields . | . . . Core Remaining (%) 86 | 100 73 . Volleys Fired 18 | . 7 11 Largest 2 | . 1 2 Hottest 40 | . 35 40 Shots Fired 22 | . 9 13 Gun . | . . . Cannon 9 | . 9 . Launcher . | . . . Special 13 | . . 13 Kinetic 9 | . 9 . Thermal 13 | . . 13 Explosive . | . . . Electromagnetic . | . . . Robot Hit Streak 3 | . 3 2 Robot Miss Streak 2 | . 2 2 Penetration Max . | . . . Secondary Targets . | . . . Shots Hit Robots 10 | . 5 5 Core Hits 20 | 5 5 10 Critical Kills . | . . . Critical Parts Destroyed . | . . . Critical Strikes . | . . . Melee Attacks . | . . . Impact . | . . . Slashing . | . . . Piercing . | . . . Sneak Attacks . | . . . Combat Hostiles . | . . . Follow-up Attacks . | . . . Damage Inflicted 305 | 21 143 141 Guns . | . . . Cannons 91 | . 91 . Explosions . | . . . Melee . | . . . Ramming 158 | 21 52 85 Kinetic 91 | . 91 . Thermal 56 | . . 56 Explosive . | . . . Electromagnetic . | . . . Impact . | . . . Slashing . | . . . Piercing . | . . . Highest Corruption 4 | . 4 . Average Corruption 3 | . 3 . Corruption Purged . | . . . Corruption Blocked . | . . . Effects 21 | . 21 . Message Errors 2 | . 2 . Matter Fused 8 | . 8 . Heat Flow Errors 4 | . 4 . Energy Discharges 3 | . 3 . Data Loss (minor) 1 | . 1 . Misfires 2 | . 2 . Alerts 1 | . 1 . Overload Shots . | . . . Overflow Damage 6 | . 6 . Projectiles 4 | . 4 . Explosions . | . . . Melee 2 | . 2 . Knockbacks 2 | . 2 . Impact . | . . . Kinetic 2 | . 2 . Secondary . | . . . Self-Inflicted Damage . | . . . Shots . | . . . Rammed 54 | 11 15 28 Targets Rammed 58 | 11 17 30 Kicked . | . . . Crushed 4 | . 2 2 Highest Temperature 269 | . 269 7 Average Temperature 113 | . 119 6 Received Heat Transfer 423 | . . 423 Siege Activations . | . . . Robots Corrupted 1 | . 1 . Combat Hostiles 1 | . 1 . Parts Fried . | . . . Impact Corruptions 1 | . 1 . Robots Melted . | . . . Combat Hostiles . | . . . Parts Melted . | . . . Heat Transferred 185 | . . 185 Parts Sabotaged . | . . . Parts Stolen . | . . . Parts Stripped . | . . . Power Chain Reactions . | . . . Alert | -11 -10 -9 ------- Run | Yrd Mat Mat Peak Influence 109 | 5 109 76 Initial 3 | . 3 1 Average 31 | 1 34 35 Maximum Alert Level . | . . . Low Security (%) 100 | 100 100 100 Level 1 . | . . . Level 2 . | . . . Level 3 . | . . . Level 4 . | . . . Level 5 . | . . . High Security . | . . . Max Security . | . . . Squads Dispatched 3 | . 3 . Investigation 2 | . 2 . Extermination . | . . . Reinforcement 1 | . 1 . Assault . | . . . Garrison . | . . . Intercept . | . . . Searches Triggered . | . . . Construction Impeded . | . . . Haulers Reinforced . | . . . Active Scanning Responses . | . . . Cargo Convoy Interrupts . | . . . Stealth | -11 -10 -9 --------- Run | Yrd Mat Mat Distress Signals 3 | . 2 1 Communications Jammed . | . . . Distress Signals . | . . . Times Spotted 16 | . 9 7 Peak Tracking Total 6 | . 3 6 Tactical Retreats . | . . . Traps | -11 -10 -9 ------- Run | Yrd Mat Mat Traps Triggered 3 | . 2 1 Indirectly . | . . . Trap Hack Attempts . | . . . Triggered . | . . . Disarmed . | . . . Reprogrammed . | . . . Reused . | . . . Traps Extracted . | . . . Installed . | . . . Triggered . | . . . Machines | -11 -10 -9 ---------- Run | Yrd Mat Mat Machines Disabled 1 | . 1 . Max in Single Turn 1 | . 1 . Machines Repaired . | . . . Machines Dismantled . | . . . Machines Sabotaged . | . . . Overloaded Fab Kills . | . . . Hacking | -11 -10 -9 --------- Run | Yrd Mat Mat Machines Accessed 2 | . 2 . Terminals 1 | . 1 . Fabricators . | . . . Repair Stations 1 | . 1 . Recycling Units . | . . . Scanalyzers . | . . . Garrison Access . | . . . Total Hacks 5 | . 5 . Successful 1 | . 1 . Failed 4 | . 4 . Catastrophic 1 | . 1 . Database Lockouts . | . . . Manual . | . . . Terminals 3 | . 3 . Fabricators . | . . . Repair Stations 2 | . 2 . Recycling Units . | . . . Scanalyzers . | . . . Garrison Access . | . . . Terminal Hacks 1 | . 1 . Emergency Access Points 1 | . 1 . Fabricator Hacks . | . . . Repair Station Hacks . | . . . Recycling Unit Hacks . | . . . Scanalyzer . | . . . Garrison Access Hacks . | . . . Unauthorized Hacks . | . . . Terminals . | . . . Fabricators . | . . . Repair Stations . | . . . Recycling Units . | . . . Scanalyzers . | . . . Garrison Access . | . . . Data Cores Recovered . | . . . Used . | . . . Hacking Detections 2 | . 2 . Full Trace Events 1 | . 1 . Feedback Events . | . . . Feedback Blocked . | . . . Robot Schematics Acquired . | . . . Robots Built . | . . . Authchips . | . . . Time . | . . . Total Robot Build Rating . | . . . Part Schematics Acquired . | . . . Parts Built . | . . . Authchips . | . . . Time . | . . . Total Part Build Rating . | . . . Parts Repaired . | . . . Time . | . . . Parts Recycled . | . . . Recycled Matter . | . . . Retrieved Matter . | . . . Retrieved Components . | . . . Parts Scanalyzed . | . . . Part Schematics Acquired . | . . . Parts Damaged . | . . . Bothacking | -11 -10 -9 ------------ Run | Yrd Mat Mat Used RIF Installer . | . . . Robots Hacked . | . . . Non-combat . | . . . Combat . | . . . Robot Hacks Applied . | . . . Relay Couplers Released . | . . . Fabnet Peak Effective % . | . . . Robots Rewired . | . . . Allies Hacked . | . . . Hacks Repelled . | . . . Allies | -11 -10 -9 -------- Run | Yrd Mat Mat Total Allies . | . . . Largest Group . | . . . Highest-Rated Group . | . . . Highest-Rated Ally . | . . . Total Orders . | . . . Ally Attacks . | . . . Total Damage . | . . . Kills . | . . . Allies Corrupted . | . . . Allies Melted . | . . . Intel | -11 -10 -9 ------- Run | Yrd Mat Mat Robot Analysis Total . | . . . Derelict Logs Recovered . | . . . Drone Launches . | . . . Drone Recoveries . | . . . Exploration | -11 -10 -9 ------------- Run | Yrd Mat Mat Turns Passed 1187 | 94 930 163 Spaces Moved 459 | 47 383 29 Core 7 | 7 . . Treads 452 | 40 383 29 Legs . | . . . Wheels . | . . . Hover . | . . . Flight . | . . . Fastest Speed 50 | 50 160 160 Average Speed 209 | 143 220 168 Slowest Speed 240 | 160 240 240 Overloaded Moves . | . . . Propulsion Burnouts . | . . . Robots Hopped . | . . . Cave-ins Triggered . | . . . Exploration Rate (%) 18 | 4 42 10 Regions Visited 2 Branch Regions . Pre-discovered Areas . | . . . Known Exits Taken . | . . . Unknown Exits Taken 2 | 1 1 . Scrap Searched . | . . . Spaces Dug . | . . . Terrain Destroyed . | . . . Melee . | . . . Projectile . | . . . AOE . | . . . Terrain Rammed . | . . . Walls Destroyed . | . . . Machines Disabled . | . . . Actions | -11 -10 -9 --------- Run | Yrd Mat Mat Total 586 | 67 439 80 Wait 12 | 1 9 2 Move 457 | 46 382 29 Hop . | . . . Pick Up 18 | 5 11 2 Fast Attach 4 | . 4 . Attach 12 | 4 2 6 Detach . | . . . Swap 3 | . 3 . Drop 4 | . 4 . Fire 18 | . 7 11 Melee . | . . . Ram 2 | . . 2 Kick . | . . . Crush 56 | 11 17 28 Escape Stasis . | . . . Rewire . | . . . Trap . | . . . Miscellaneous . | . . . Route ------- -11/Scrapyard -10/Materials -9/Materials History --------- Turn | Location | Event 18 | -11/Scrapyard | Discovered new exit (range 16) 95 | -11/Scrapyard | Entered Materials 305 | -10/Materials | Build established: Mutant 345 | -10/Materials | Discovered new exit (range 16) 1025 | -10/Materials | Entered another Materials area 1025 | -9/Materials | Evolved 2 slots: Propulsion x1, Utility x1 1157 | -9/Materials | Core integrity fell below 50% 1180 | -9/Materials | Core integrity fell below 20% 1188 | -9/Materials | Destroyed by Y-45 Defender with Beam Rifle Last Messages --------------- 01149_ Lgt. Treads destroyed. 01149_ Critical hit (Burn: +37). 01150_ Y-45 Defender suffers critical hit (Burn). 01152_ Critical hit (Destroy). 01152_ Plasma Cutter destroyed. 01153_ U-05 Engineer works on Processing Tank. 01153_ Critical hit (Burn: +37). 01155_ Slammed into Y-45 Defender. 01156_ Lgt. Treads destroyed. 01156_ Slammed into Y-45 Defender. 01159_ U-05 Engineer works on Processing Tank. 01161_ U-05 Engineer destroyed. 01161_ Slammed into Y-45 Defender. 01175_ R-06 Scavenger collects Ion Engine. 01176_ Slammed into Y-45 Defender. 01176_ Lgt. Treads destroyed. 01178_ Slammed into Y-45 Defender. 01179_ R-06 Scavenger collects Lgt. Treads. 01185_ Slammed into Y-45 Defender. 01185_ R-06 Scavenger collects Lgt. Assault Rifle. Map ----- +----------------------------------------------------+ | ?????????????????????????????????????????????????? | | ?????????????????????????????????????????????????? | | ?????????????????????????????????????????????????? | | ?????????????????????????????????????????????????? | | ?????????????????????????????????????????????????? | | ?????????????????????????????????????????????????? | | ?????????????????????????????????????????????????? | | ?????????????????????????????????????????????????? | | ?????????????????????????????????????????????????? | | ?????????????????? "?" ????????????????????????? | | ?????????????????? ????????????????????????? | | ?????????????????? ????????????????????????? | | ?????????????????? < ????????????????????????? | | ?????????????????#!= < #???????????????????????? | | ?????????????????#*%"< #????##?????????????????? | | ?????????????????#!|<< #??? ??????????????????? | | ?????????????????# << #??T ???????????????????? | | ?????????????????# ## ????????????????????? | | ?????????????????# # ????????????????????? | | ?????????????????# """ + ?????????????????????? | | ?????????????????+ "" #??????????????????????? | | ?????????????????# "" #??????????????????????? | | ???????????###+### """ #??????????????????????? | | ???????????# """ #??????????????????????? | | ???????????# ] #??????????????????????? | | ???????????# Y @#??????????????????????? | | ???????????# """ Y #??????????????????????? | | ???????????# "" ##?????????????????????? | | ????????#### """ #?????????????????????? | | ????????+ "" #?????????????????????? | | ????????#### " " +?????????????????????? | | ???????????# % = #?????????????????????? | | ???????????# * =r #?????????????????????? | | ???????????###+####### ##?????????????????????? | | ???????????? ??????#^^^ #??????????????????????? | | ??????????? ???????# #??????????????????????? | | ?????????? ????????# #??????????????????????? | | ?????????# ?????????# #??????????????????????? | | ?????????# ?????????# #??????????????????????? | | ?????????# ??????????# #??????????????????????? | | ????????? ???????????# #??########????????????? | | ????????#????????????# #? ] #????????????? | | ?????????????????????# #? #????????????? | | ?????????????????????# # | #????????????? | | ?????????????????????# # #????????????? | | ?????????????????????# + #????????????? | | ?????????????????????# # """ """ #????????????? | | ?????????????????????# # """ ""???????????????? | | ?????????????????????# #?""" "????????????????? | | ?????????????????????# #?#####????????????????? | +----------------------------------------------------+ Best States ------------- Heat Dissipation 35 Energy Generation 10 Energy Capacity 250 Matter Stores 300 Matter Capacity 300 Sight Range 16 Terrain Scan Density 10 Armor Coverage 300 Evasion (%) 40 Recoil Reduction 3 Item Schematics ----------------- None Robot Schematics ------------------ None Fabricated ------------ Nothing Alien Tech Used ----------------- None Achievements -------------- Power Corrupts Uninvited Guest Challenges ------------ None Game ------ Seed SystemHeavyCompanion Manual? 0 Play Time 00:19:01 Cumulative 2.0 hours Start 2024.12.14 @ 17:43:30 End 2024.12.14 @ 18:07:09 Sessions 1 Manual Loads 0 Difficulty Rogue Special Mode None Game No. 3 Rogue 3 Adventurer 0 Explorer 0 Win Type - Total 0 Types 0/0/0/0/0/0/0/0/0 Lore% 0 Gallery% 6 Achievement% 5 Wizard Run 0 Options --------- Layout 0 ASCII 0 Keyboard 0 Movement Numpad Keybinds 0 Fullscreen 1 Font 18/SmallcapsGlow Map View 76x50 Zoom Use 0% Tactical HUD 1 Map Filters NONE Filters NONE Steam 1 RUN: a4ea981b-612e-4432-af34-caff5bb218c8